fUSD/lending_fUSD_20251204
["ID","MTS","AMOUNT","RATE_DAILY","PERIOD"]
[396210145,1764807042990,-553.64373807,0.00041651,28]
[396210146,1764807043000,-151.0,0.00041651,28]
[396210147,1764807043009,-201.93286098,0.00041651,28]
[396210148,1764807043019,-500.0,0.00041651,28]
[396210149,1764807043029,-500.0,0.00041651,28]
[396210150,1764807043039,-500.0,0.00041651,28]
[396210151,1764807043049,-500.0,0.00041651,28]
[396210152,1764807043059,-500.0,0.00041651,28]
[396210153,1764807043068,-500.0,0.00041651,28]
[396210154,1764807043078,-500.0,0.00041651,28]
[396210155,1764807043088,-500.0,0.00041651,28]
[396210156,1764807043097,-500.0,0.00041651,28]
[396210157,1764807043107,-500.0,0.00041651,28]
[396210158,1764807043116,-500.0,0.00041651,28]
[396210159,1764807043126,-500.0,0.00041651,28]
[396210160,1764807043135,-500.0,0.00041651,28]
[396210161,1764807043145,-1000.0,0.00041651,28]
[396210162,1764807043154,-10000.0,0.00041652,2]
[396210163,1764807043164,-225.74400242,0.00041652,4]
[396210164,1764807043173,-265.99,0.000417,14]
[396210165,1764807043183,-196.83392471,0.00041729,7]
[396210166,1764807043193,-150.76,0.00041729,2]
[396210167,1764807043203,-150.76,0.00041729,2]
[396210168,1764807043213,-150.76,0.00041729,2]
[396210169,1764807043222,-150.76,0.00041729,2]
[396210170,1764807043232,-150.76,0.00041729,2]
[396210171,1764807043242,-150.76,0.00041729,2]
[396210172,1764807043252,-150.76,0.00041729,2]
[396210173,1764807043262,-150.76,0.00041729,2]
[396210174,1764807043272,-150.76,0.00041729,2]
[396210175,1764807043281,-150.76,0.00041729,2]
[396210176,1764807043291,-150.76,0.00041729,2]
[396210177,1764807043300,-150.76,0.00041729,2]
[396210178,1764807043309,-150.76,0.00041729,2]
[396210179,1764807043319,-150.76,0.00041729,2]
[396210180,1764807043328,-150.76,0.00041729,2]
[396210181,1764807043338,-150.76,0.00041729,2]
[396210182,1764807043348,-150.76,0.00041729,2]
[396210183,1764807043358,-150.76,0.00041729,2]
[396210184,1764807043367,-150.76,0.00041729,2]
[396210185,1764807043377,-150.76,0.00041729,2]
[396210186,1764807043386,-150.76,0.00041729,2]
[396210187,1764807043396,-150.76,0.00041729,2]
[396210188,1764807043406,-150.76,0.00041729,2]
[396210189,1764807043415,-150.76,0.00041729,2]
[396210190,1764807043425,-150.76,0.00041729,2]
[396210191,1764807043434,-150.76,0.00041729,2]
[396210192,1764807043443,-150.76,0.00041729,2]
[396210193,1764807043453,-150.76,0.00041729,2]
[396210194,1764807043462,-150.76,0.00041729,2]
[396210195,1764807043471,-150.76,0.00041729,2]
[396210196,1764807043480,-150.76,0.00041729,2]
[396210197,1764807043490,-150.76,0.00041729,2]
[396210198,1764807043500,-150.76,0.00041729,2]
[396210199,1764807043510,-150.76,0.00041729,2]
[396210200,1764807043520,-150.76,0.00041729,2]
[396210201,1764807043530,-150.76,0.00041729,2]
[396210202,1764807043540,-150.76,0.00041729,2]
[396210203,1764807043549,-150.76,0.00041729,2]
[396210204,1764807043558,-151.0,0.00041736,14]
[396210205,1764807043568,-300.0,0.00041738,30]
[396210206,1764807043581,-150.0,0.00041738,20]
[396210207,1764807043591,-500.0,0.00041738,120]
[396210208,1764807043601,-500.0,0.00041738,120]
[396210209,1764807043610,-500.0,0.00041738,120]
[396210210,1764807043620,-473.49,0.00041738,120]
[396210211,1764807043630,-300.0,0.00041738,2]
[396210212,1764807043639,-300.0,0.00041738,2]
[396210213,1764807043649,-382.28546071,0.00041738,2]
[396210214,1764807043659,-500.0,0.00041738,120]
[396210215,1764807043668,-500.0,0.00041738,120]
[396210216,1764807043678,-242.84,0.00041738,120]
[396210217,1764807043688,-589.92474378,0.00041739,31]
[396210218,1764807043698,-17455.91187965,0.00041739,33]
[396210219,1764807043707,-484925.07720327,0.00041739,7]
[396210220,1764807043784,-574.25992569,0.00033537,2]
[396210221,1764807043795,-334.74007431,0.00033537,2]
[396210222,1764807043805,-154.90600504,0.00034613,2]
[396210223,1764807043816,-9.58523385,0.00034613,2]
[396210224,1764807043826,-164.72979671,0.000361,2]
[396210225,1764807043835,-270.296,0.00036537,2]
[396210226,1764807043845,-291.82198663,0.00039,2]
[396210227,1764807043855,-719.38218301,0.00041739,7]
[396210228,1764807043866,-4843.01366024,0.00041739,7]
[396210229,1764807043878,-269.60330616,0.00041739,7]
[396210230,1764807043894,-840.51735961,0.00041739,7]
[396210231,1764807043905,-916.85594,0.00041739,7]
[396210232,1764807043917,-500.0,0.00041739,7]
[396210234,1764807045807,-1695.24186209,0.00041739,7]
[396210235,1764807045873,-597.11801022,0.00041739,7]
[396210236,1764807045884,-371.61709978,0.00041739,7]
[396210237,1764807046023,-3346.1595998,0.00041739,7]
[396210250,1764808117412,6772.56,0.00015,2]
[396210265,1764808231743,-367.88852127,0.00015,2]
[396210268,1764808231756,-3388.27261124,0.00015,2]
[396210281,1764808237908,-108.73872698,0.00015,2]
[396210282,1764808237920,-212.0,0.00015,2]
[396210283,1764808237929,-769.9218727,0.00016535,2]
[396210284,1764808238027,-688.4875498,0.00016535,2]
[396210285,1764808238039,-1.0875775,0.00016535,2]
[396210294,1764808238256,-177.36,0.00016535,2]
[396210297,1764808238266,-2303.4861,0.00016773,2]
[396210298,1764808238276,-257.7310232,0.00016773,2]
[396210300,1764808238287,-347.70504246,0.00016773,2]
[396210302,1764808238303,-819.76001796,0.00016773,2]
[396210304,1764808238315,-394.14575585,0.00016773,2]
[396210310,1764808241899,-3107.62569892,0.00016773,2]
[396210311,1764808241909,-500.0,0.00016872,2]
[396210312,1764808241917,-500.0,0.00016872,2]
[396210313,1764808241926,-354.17411936,0.00016872,2]
[396210314,1764808241936,-500.0,0.00016872,2]
[396210315,1764808241945,-500.0,0.00016872,2]
[396210316,1764808241954,-4926.9675383,0.00016887,2]
[396210317,1764808241962,-173.82837656,0.000169,2]
[396210318,1764808241971,-4312.81303244,0.000169,2]
[396210319,1764808241979,-188.74322564,0.00016901,2]
[396210320,1764808241988,-163.16137813,0.00016973,2]
[396210321,1764808241997,-500.0,0.00016973,2]
[396210322,1764808242006,-196.83392471,0.0001699,2]
[396210323,1764808242014,-1127.86716468,0.00016999,2]
[396210324,1764808242023,-458.93958446,0.00016999,2]
[396210325,1764808242032,-500.0,0.00016999,2]
[396210326,1764808242040,-500.0,0.00016999,2]
[396210327,1764808242049,-333.97161255,0.00016999,2]
[396210328,1764808242057,-500.0,0.00016999,2]
[396210329,1764808242066,-410.58376754,0.00016999,2]
[396210330,1764808242075,-500.0,0.00016999,2]
[396210331,1764808242085,-500.0,0.00016999,2]
[396210332,1764808242094,-500.0,0.00016999,2]
[396210333,1764808242103,-2143677.76301583,0.00017,2]
[396210334,1764808242111,-1226080.24898166,0.00017,2]
[396210348,1764808242948,-111056.21244854,0.00017,2]
[396210360,1764808245819,-1395.0,0.00017,2]
[396210361,1764808246001,-4345.81127746,0.00017,2]
[396210366,1764808531308,-376.64447198,0.00013699,2]
[396210369,1764808875776,-91.46552802,0.00013699,2]
[396210370,1764808875802,-250.0,0.00013699,2]
[396210371,1764808875824,-65.8974645,0.00013699,2]
[396210418,1764809295742,-300.0,0.00013699,2]
[396210419,1764809295766,-300.0,0.00013699,2]
[396210420,1764809295790,-192.64356251,0.00013699,2]
[396210421,1764809416530,-195.0,0.00013699,2]
[396210426,1764809432058,-5.0,0.00013699,2]
[396210427,1764809432068,-289.03792491,0.00014549,2]
[396210428,1764809432078,-300.0,0.00014553,2]
[396210429,1764809432088,-114.96207509,0.00014553,2]
[396210430,1764809432100,-65.84904617,0.00014553,2]
[396210431,1764809432110,-195.0,0.00015069,2]
[396210432,1764809432120,-300.0,0.00015069,2]
[396210433,1764809432130,-250.0,0.00015069,2]
[396210434,1764809432139,-300.0,0.00015069,2]
[396210435,1764809432148,-250.0,0.00015069,2]
[396210436,1764809432158,-250.0,0.00015748,2]
[396210437,1764809432167,-927.54854268,0.0001578,2]
[396210438,1764809432178,-72.45145732,0.0001578,2]
[396210439,1764809432188,-866.13481237,0.00015784,2]
[396210440,1764809432201,-333.86518763,0.00015784,2]
[396210441,1764809432210,-2500.66,0.00015785,2]
[396210442,1764809432220,-300.0,0.0001587,2]
[396210443,1764809432229,-300.0,0.0001587,2]
[396210444,1764809432238,-300.0,0.0001587,2]
[396210445,1764809432248,-375.33175186,0.00015873,2]
[396210446,1764809432258,-500.0,0.00015873,2]
[396210447,1764809432267,-500.0,0.00015873,2]
[396210448,1764809432276,-163.11683196,0.00015873,2]
[396210449,1764809432287,-1069.18720343,0.00016078,2]
[396210450,1764809432310,-1681.81279657,0.00016078,2]
[396210451,1764809432319,-1000.0,0.00016421,2]
[396210452,1764809432328,-1000.0,0.00016421,2]
[396210453,1764809432338,-177.36,0.00016437,2]
[396210454,1764809432347,-1167.598,0.00016437,2]
[396210455,1764809432356,-550.0,0.00016437,2]
[396210456,1764809432366,-4385.66,0.00016438,2]
[396210457,1764809432375,-15950.99361042,0.00016438,2]
[396210458,1764809432386,-1420.2,0.00016438,2]
[396210459,1764809438039,-2003.58187372,0.00016438,2]
[396210460,1764809438145,-359.68111348,0.00016438,2]
[396210461,1764809438156,-2480.42774565,0.00016438,2]
[396210462,1764809438250,-5378.47565673,0.00016438,2]
[396210463,1764809438260,-6313.47734344,0.00016611,2]
[396210473,1764809440186,-52538.95855656,0.00016611,2]
[396210474,1764809440196,-4821.9458144,0.00016691,2]
[396210475,1764809440206,-4821.94581436,0.00016714,2]
[396210476,1764809440216,-205.77209212,0.00016736,2]
[396210477,1764809440226,-4821.94581436,0.00016737,2]
[396210478,1764809440236,-4821.94581436,0.00016761,2]
[396210479,1764809440245,-1127.86716468,0.00016772,2]
[396210480,1764809440254,-500.0,0.00016772,2]
[396210481,1764809440266,-500.0,0.00016772,2]
[396210482,1764809440276,-500.0,0.00016772,2]
[396210483,1764809440286,-500.0,0.00016772,2]
[396210484,1764809440295,-500.0,0.00016772,2]
[396210485,1764809440305,-5528.25013687,0.00016777,2]
[396210486,1764809440315,-4821.94581436,0.00016784,2]
[396210487,1764809440325,-4821.94581436,0.00016807,2]
[396210488,1764809440335,-158.364911,0.00016824,2]
[396210489,1764809440346,-4821.94581436,0.0001683,2]
[396210490,1764809440356,-4821.94581436,0.00016854,2]
[396210491,1764809440366,-4821.94581436,0.00016877,2]
[396210492,1764809440375,-2651.7637,0.000169,2]
[396210493,1764809440385,-218.03541393,0.000169,2]
[396210494,1764809440397,-195.03027527,0.000169,2]
[396210495,1764809440408,-1000.0,0.000169,2]
[396210496,1764809440419,-453.11597988,0.000169,2]
[396210497,1764809440430,-4821.94581436,0.000169,2]
[396210498,1764809440439,-4312.81303244,0.000169,2]
[396210499,1764809440449,-270.59819079,0.000169,2]
[396210500,1764809440460,-457.43097348,0.000169,2]
[396210501,1764809440470,-190.90817501,0.000169,2]
[396210502,1764809440479,-279.06846382,0.000169,2]
[396210503,1764809440489,-336.24212482,0.000169,2]
[396210504,1764809440500,-485.9050002,0.000169,2]
[396210505,1764809440509,-502.53,0.00016922,2]
[396210506,1764809440519,-804.17,0.00016922,2]
[396210507,1764809440529,-510.62,0.00016922,2]
[396210508,1764809440539,-150.99,0.00016922,2]
[396210509,1764809440548,-9999.99,0.00016922,2]
[396210510,1764809440557,-1500.0,0.00016968,2]
[396210511,1764809440567,-1588.56896578,0.00016968,2]
[396210512,1764809440576,-5528.25013685,0.0001697,2]
[396210513,1764809440585,-150.53363931,0.00016973,2]
[396210514,1764809440595,-500.0,0.00016973,2]
[396210515,1764809440605,-160.03289921,0.00016973,2]
[396210516,1764809440615,-165.48144964,0.00016973,2]
[396210517,1764809440627,-500.0,0.00016973,2]
[396210518,1764809440637,-160.17415297,0.00016973,2]
[396210519,1764809440646,-500.0,0.00016973,2]
[396210520,1764809440655,-500.0,0.00016973,2]
[396210521,1764809440665,-502.03566603,0.00016973,2]
[396210522,1764809440674,-540.53867105,0.00016973,2]
[396210523,1764809440683,-151.58669005,0.00016973,2]
[396210524,1764809440693,-500.0,0.00016973,2]
[396210525,1764809440703,-168.11726072,0.00016973,2]
[396210526,1764809440713,-502.93083971,0.00016973,2]
[396210527,1764809440722,-616.40948711,0.00016973,2]
[396210528,1764809440731,-508.48113528,0.00016973,2]
[396210529,1764809440741,-466.20131259,0.00016973,2]
[396210530,1764809440750,-500.0,0.00016973,2]
[396210531,1764809440760,-1377.15,0.00016973,2]
[396210532,1764809440769,-38491.65,0.00016986,2]
[396210533,1764809440781,-196.83392471,0.0001699,2]
[396210534,1764809440791,-1491.53744342,0.00016999,5]
[396210535,1764809440801,-3867.52212293,0.00016999,2]
[396210536,1764809440810,-500.0,0.00016999,2]
[396210537,1764809440821,-558.76,0.00016999,2]
[396210538,1764809440832,-500.0,0.00016999,2]
[396210539,1764809440842,-500.0,0.00016999,2]
[396210540,1764809440852,-500.0,0.00016999,2]
[396210541,1764809440866,-500.0,0.00016999,2]
[396210542,1764809440876,-354.17411936,0.00016999,2]
[396210543,1764809440886,-331.91423239,0.00016999,2]
[396210544,1764809440897,-500.0,0.00016999,2]
[396210545,1764809440907,-500.0,0.00016999,2]
[396210546,1764809440919,-500.0,0.00016999,2]
[396210547,1764809440930,-333.97161255,0.00016999,2]
[396210548,1764809440939,-500.0,0.00016999,2]
[396210549,1764809440951,-500.0,0.00016999,2]
[396210550,1764809440963,-500.0,0.00016999,2]
[396210551,1764809440973,-500.0,0.00016999,2]
[396210552,1764809440983,-500.0,0.00016999,2]
[396210553,1764809440992,-500.0,0.00016999,2]
[396210554,1764809441002,-500.0,0.00016999,2]
[396210555,1764809441011,-500.0,0.00016999,2]
[396210556,1764809441021,-500.0,0.00016999,2]
[396210557,1764809441031,-500.0,0.00016999,2]
[396210558,1764809441040,-500.0,0.00016999,2]
[396210559,1764809441051,-466.17701952,0.00016999,2]
[396210560,1764809441060,-500.0,0.00016999,2]
[396210561,1764809441071,-500.0,0.00016999,2]
[396210562,1764809441081,-1809544.71498119,0.00017,2]
[396210563,1764809441098,-2483683.88181222,0.00017,2]
[396210564,1764809441110,-250.0,0.00017,2]
[396210565,1764809441120,-196066.0573056,0.00017042,2]
[396210566,1764809441129,-125241.0715533,0.00017042,2]
[396210567,1764809441139,-250.0,0.00017084,2]
[396210568,1764809441149,-31872.7618887,0.0001709,2]
[396210569,1764809441158,-5528.25013685,0.00017163,2]
[396210570,1764809441168,-1377.15,0.00017247,2]
[396210571,1764809441177,-1680.0,0.00017348,2]
[396210572,1764809441187,-300.0,0.00017353,2]
[396210573,1764809441197,-300.0,0.00017353,2]
[396210574,1764809441207,-5528.25013685,0.00017357,2]
[396210575,1764809441216,-500.0,0.00017516,2]
[396210576,1764809441226,-1000.0,0.00017521,2]
[396210577,1764809441239,-1000.0,0.00017521,2]
[396210578,1764809441249,-1000.0,0.00017521,2]
[396210579,1764809441259,-1000.0,0.00017521,2]
[396210580,1764809441268,-648.75055761,0.00017521,2]
[396210581,1764809441278,-1000.0,0.00017521,2]
[396210582,1764809441287,-1377.15,0.00017521,2]
[396210583,1764809441297,-5528.25013685,0.0001755,2]
[396210584,1764809441306,-277.0,0.00017555,2]
[396210585,1764809441318,-5528.25013685,0.00017743,2]
[396210586,1764809441328,-1000.0,0.00017753,2]
[396210587,1764809441338,-1377.15,0.00017795,2]
[396210588,1764809441348,-5528.25013685,0.00017936,2]
[396210589,1764809441360,-26805.9935227,0.00018,2]
[396210590,1764809441369,-887.12527803,0.00018,2]
[396210591,1764809441379,-1183.29785971,0.00018,2]
[396210592,1764809441389,-1377.15,0.00018068,2]
[396210593,1764809441398,-580.51990676,0.00018068,2]
[396210594,1764809441408,-1500.0,0.00018068,2]
[396210595,1764809441417,-833.76047422,0.00018068,2]
[396210596,1764809441426,-1365.2532584,0.00018068,2]
[396210597,1764809441435,-1500.0,0.00018068,2]
[396210598,1764809441445,-1000.0,0.00018082,2]
[396210599,1764809441454,-1768.72037433,0.000181,2]
[396210600,1764809441463,-5528.25013685,0.0001813,2]
[396210601,1764809441473,-5528.25013685,0.00018323,2]
[396210602,1764809441482,-1377.15,0.00018342,2]
[396210603,1764809441491,-87951.59,0.00018356,2]
[396210604,1764809441501,-5528.25013685,0.00018516,2]
[396210605,1764809441511,-1377.15,0.00018616,2]
[396210606,1764809441524,-2000.0,0.00018616,2]
[396210607,1764809441534,-504.18743369,0.00018616,2]
[396210608,1764809441543,-1000.0,0.0001876,2]
[396210609,1764809441553,-150.76,0.000188,2]
[396210610,1764809441563,-150.76,0.000188,2]
[396210611,1764809441572,-150.76,0.000188,2]
[396210612,1764809441581,-150.76,0.000188,2]
[396210613,1764809441590,-150.76,0.000188,2]
[396210614,1764809441600,-150.76,0.000188,2]
[396210615,1764809441610,-150.76,0.000188,2]
[396210616,1764809441626,-150.76,0.000188,2]
[396210617,1764809441636,-150.76,0.000188,2]
[396210618,1764809441646,-150.76,0.000188,2]
[396210619,1764809441656,-150.76,0.000188,2]
[396210620,1764809441668,-150.76,0.000188,2]
[396210621,1764809441677,-150.76,0.000188,2]
[396210622,1764809441689,-150.76,0.000188,2]
[396210623,1764809441698,-150.76,0.000188,2]
[396210624,1764809441709,-150.76,0.000188,2]
[396210625,1764809441718,-150.76,0.000188,2]
[396210626,1764809441729,-150.76,0.000188,2]
[396210627,1764809441739,-150.76,0.000188,2]
[396210628,1764809441748,-150.76,0.000188,2]
[396210629,1764809441758,-150.76,0.000188,2]
[396210630,1764809441767,-150.76,0.000188,2]
[396210631,1764809441776,-150.76,0.000188,2]
[396210632,1764809441786,-150.76,0.000188,2]
[396210633,1764809441796,-150.76,0.000188,2]
[396210634,1764809441806,-150.76,0.000188,2]
[396210635,1764809441815,-150.76,0.000188,2]
[396210636,1764809441825,-150.76,0.000188,2]
[396210637,1764809441835,-150.76,0.000188,2]
[396210638,1764809441844,-150.76,0.000188,2]
[396210639,1764809441855,-150.76,0.000188,2]
[396210640,1764809441864,-1377.15,0.0001889,2]
[396210641,1764809441873,-5138.75982196,0.00019,2]
[396210642,1764809441883,-163.40451326,0.00019,2]
[396210643,1764809441892,-6077.20405315,0.00019,2]
[396210644,1764809441902,-5800.0,0.00019027,2]
[396210645,1764809441911,-5800.0,0.00019036,2]
[396210646,1764809441921,-190.90817495,0.00019043,2]
[396210647,1764809441931,-5800.0,0.00019044,2]
[396210648,1764809441940,-5800.0,0.00019053,2]
[396210649,1764809441950,-5800.0,0.00019061,2]
[396210650,1764809441960,-1630.0,0.00019067,2]
[396210651,1764809441969,-5800.0,0.0001907,2]
[396210652,1764809441979,-5800.0,0.00019078,2]
[396210653,1764809441989,-1377.15,0.00019164,2]
[396210654,1764809441999,-596.43313874,0.00019164,2]
[396210655,1764809442014,-3007.09612758,0.00019178,2]
[396210656,1764809442024,-1377.15,0.00019438,2]
[396210657,1764809442033,-1000.0,0.00019438,2]
[396210658,1764809442043,-150.76,0.0001951,2]
[396210659,1764809442053,-43748.2507662,0.0001952,2]
[396210660,1764809442062,-27945.0603528,0.0001952,2]
[396210661,1764809442071,-7111.7744646,0.00019575,2]
[396210662,1764809442080,-1377.15,0.00019712,2]
[396210663,1764809442089,-1000.0,0.00019726,2]
[396210664,1764809442099,-336.24212482,0.000199,2]
[396210665,1764809442108,-1377.15,0.00019986,2]
[396210666,1764809442117,-10860.66841868,0.0002,2]
[396210667,1764809442126,-3950.0,0.0002,2]
[396210668,1764809442135,-7250.56256434,0.0002,2]
[396210669,1764809442144,-1287.54280394,0.0002,2]
[396210670,1764809442153,-1039.26148696,0.0002,2]
[396210671,1764809442162,-2848.00369775,0.0002,2]
[396210672,1764809442171,-414.46630369,0.0002,2]
[396210673,1764809442180,-12855.32736228,0.0002,2]
[396210674,1764809442190,-8720.0,0.0002001,2]
[396210675,1764809442199,-9761.5541996,0.00020073,2]
[396210676,1764809442209,-6235.3857918,0.00020073,2]
[396210677,1764809442218,-1000.0,0.00020116,2]
[396210678,1764809442228,-1586.8513752,0.00020129,2]
[396210679,1764809442237,-468.11,0.00020187,2]
[396210680,1764809442246,-1377.15,0.0002026,2]
[396210681,1764809442256,-1377.15,0.00020534,2]
[396210682,1764809442265,-1000.0,0.00020795,2]
[396210683,1764809442276,-1377.15,0.00020808,2]
[396210684,1764809442285,-9999.99,0.00020951,2]
[396210685,1764809442295,-19999.99,0.00020951,2]
[396210686,1764809442304,-453.11597986,0.00021027,2]
[396210687,1764809442314,-1377.18278,0.00021082,2]
[396210688,1764809442323,-190.90817495,0.00021186,2]
[396210689,1764809442334,-150.76,0.0002119,2]
[396210690,1764809442346,-2010.09339655,0.000212,2]
[396210691,1764809442357,-1000.0,0.00021698,2]
[396210692,1764809442366,-2500.66,0.000221,2]
[396210693,1764809442376,-3035.49503584,0.00022143,2]
[396210694,1764809442386,-909.38,0.000222,7]
[396210695,1764809442395,-200.0,0.00022736,2]
[396210696,1764809442408,-336.24212482,0.000229,2]
[396210697,1764809442418,-190.90817495,0.00023329,2]
[396210698,1764809442427,-500.0,0.0002337,2]
[396210699,1764809442437,-1000.0,0.00023671,2]
[396210700,1764809442446,-1000.0,0.00024658,2]
[396210701,1764809442455,-459.39,0.00024658,30]
[396210702,1764809442464,-500.0,0.00024658,2]
[396210703,1764809442474,-500.0,0.00024658,2]
[396210704,1764809442483,-500.0,0.00024658,2]
[396210705,1764809442493,-500.0,0.00024658,2]
[396210706,1764809442502,-500.0,0.00024658,2]
[396210707,1764809442512,-500.0,0.00024658,2]
[396210708,1764809442521,-500.0,0.00024658,2]
[396210709,1764809442532,-500.0,0.00024658,2]
[396210710,1764809442542,-500.0,0.00024658,2]
[396210711,1764809442551,-500.0,0.00024658,2]
[396210712,1764809442560,-500.0,0.00024658,2]
[396210713,1764809442570,-480.24406336,0.00024658,2]
[396210714,1764809442579,-500.0,0.00024658,2]
[396210715,1764809442589,-500.0,0.00024658,2]
[396210716,1764809442598,-500.0,0.00024658,2]
[396210717,1764809442608,-500.0,0.00024658,2]
[396210718,1764809442621,-500.0,0.00024658,2]
[396210719,1764809442631,-500.0,0.00024658,2]
[396210720,1764809442641,-500.0,0.00024658,2]
[396210721,1764809442651,-500.0,0.00024658,2]
[396210722,1764809442661,-500.0,0.00024658,2]
[396210723,1764809442671,-500.0,0.00024658,2]
[396210724,1764809442680,-500.0,0.00024658,2]
[396210725,1764809442690,-500.0,0.00024658,2]
[396210726,1764809442703,-500.0,0.00024658,2]
[396210727,1764809442713,-500.0,0.00024658,2]
[396210728,1764809442723,-500.0,0.00024658,2]
[396210729,1764809442732,-453.11597986,0.00025153,2]
[396210730,1764809442743,-190.90817495,0.00025471,2]
[396210731,1764809442754,-336.24212482,0.000259,2]
[396210732,1764809442763,-468.11,0.00026676,2]
[396210733,1764809442771,-150.0,0.00027369,2]
[396210734,1764809442780,-500.0,0.00027397,14]
[396210735,1764809442792,-4385.66,0.00027671,2]
[396210736,1764809442801,-336.24212482,0.000289,2]
[396210737,1764809442811,-175.70054234,0.00029241,30]
[396210738,1764809442820,-453.11597986,0.0002928,2]
[396210739,1764809442829,-270.59819077,0.0002928,2]
[396210740,1764809442839,-457.43097346,0.0002928,2]
[396210741,1764809442848,-279.06846381,0.0002928,2]
[396210742,1764809442857,-459.39,0.00029704,30]
[396210743,1764809442866,-236.37685643,0.00030439,14]
[396210744,1764809442875,-336.24212482,0.000319,2]
[396210745,1764809442885,-150.76,0.0003199,2]
[396210746,1764809442894,-150.76,0.0003199,2]
[396210747,1764809442903,-150.76,0.0003199,2]
[396210748,1764809442912,-150.76,0.0003199,2]
[396210749,1764809442922,-150.76,0.0003199,2]
[396210750,1764809442931,-69873.90029214,0.00032,2]
[396210751,1764809443083,-190.90817495,0.00027614,2]
[396210752,1764809443093,-15465.57636849,0.00032,2]
[396210753,1764809443111,-23211.8596337,0.00032,2]
[396210754,1764809443165,-3865.14,0.00032,2]
[396210755,1764809444108,-1000300.0,0.00032,2]
[396210762,1764809446097,-190.90817495,0.00029757,2]
[396210763,1764809446107,-5091.15124723,0.00032,2]
[396210764,1764809446253,-1050.0,0.00032,2]
[396210768,1764809475745,-162.94487866,0.00013,2]
[396210769,1764809475773,-58.05512134,0.000143,2]
[396210770,1764809478416,-136.94487866,0.000143,2]
[396210771,1764809478439,-300.0,0.000143,2]
[396210772,1764809478462,-43.0102208,0.000143,2]
[396210787,1764810632357,-221.0,0.00015854,2]
[396210788,1764810632370,-221.84737664,0.00015854,2]
[396210789,1764810632384,-500.0,0.00015873,2]
[396210790,1764810632398,-445.2825337,0.00015873,2]
[396210791,1764810632416,-500.0,0.00015873,2]
[396210792,1764810632427,-479.95509946,0.00016105,2]
[396210793,1764810632439,-8460.83695969,0.00016411,2]
[396210794,1764810632488,-5420.11782251,0.00016411,2]
[396210795,1764810632553,-312.0,0.00016411,2]
[396211156,1764810638423,-309.60591375,0.00016411,2]
[396211157,1764810638434,-1260.78888652,0.00016411,2]
[396211158,1764810638529,-3637.15312271,0.00016411,2]
[396211183,1764810640410,-23699.03988992,0.00016411,2]
[396211184,1764810640512,-55248.9805049,0.00016411,2]
[396211185,1764810640521,-383.34740337,0.00016456,2]
[396211186,1764810640531,-161.0892941,0.00016456,2]
[396211187,1764810640540,-300.0,0.00016471,2]
[396211188,1764810640549,-1200.0,0.00016471,2]
[396211189,1764810640559,-4422.60010948,0.00016472,2]
[396211191,1764810640567,-277.0,0.000165,2]
[396211192,1764810640576,-518.5,0.00016501,2]
[396211193,1764810640585,-500.0,0.00016501,2]
[396211194,1764810640595,-151.0,0.00016501,2]
[396211195,1764810640604,-151.0,0.00016501,2]
[396211196,1764810640613,-151.0,0.00016501,2]
[396211197,1764810640623,-151.0,0.00016501,2]
[396211199,1764810640632,-151.0,0.00016501,2]
[396211201,1764810640641,-151.0,0.00016501,2]
[396211203,1764810640650,-151.0,0.00016501,2]